bitfinex-derivatives/quotes_SOLF0:USTF0_20250821
["timestamp","ask_amount","ask_price","bid_price","bid_amount"]
[1755789517730,4.88187206,183.61,183.51,144.66]
[1755789517931,4.88187206,183.61,183.54,5.4491]
[1755789518136,4.88187206,183.61,183.51,144.66]
[1755789518733,3.07,183.64,183.53,2.83]
[1755789519839,4.88187206,183.63,183.54,5.4488]
[1755789520639,3.07,183.64,183.53,2.83]
[1755789521236,4.88187206,183.65,183.53,2.83]
[1755789521839,3.07,183.64,183.53,2.83]
[1755789522441,3.07,183.61,183.49,365.82]
[1755789522638,3.07,183.61,183.48,13.65121675]
[1755789522639,3.07,183.58,183.48,2.83]
[1755789523834,4.88187206,183.62,183.49,4.88187206]
[1755789524029,4.88187206,183.62,183.5,2.83]
[1755789524843,3.07,183.61,183.5,2.83]
[1755789525137,370.80187206,183.7,183.46,2.83]
[1755789525138,3.07,183.58,183.46,2.83]
[1755789525537,3.07,183.58,183.51,5.4499]
[1755789525941,3.07,183.58,183.46,2.83]
[1755789527038,4.88187206,183.56,183.46,2.83]
[1755789527638,4.88187206,183.56,183.49,5.4503]
[1755789527841,4.88187206,183.56,183.46,2.83]
[1755789529042,3.07,183.55,183.46,2.83]
[1755789529639,3.07,183.55,183.43,4.88187206]
[1755789529936,3.07,183.55,183.47,5.4509]
[1755789530136,3.07,183.55,183.42,2.83]
[1755789530947,7.95187206,183.55,183.42,2.83]
[1755789531142,144.68,183.64,183.42,2.83]
[1755789531143,4.88187206,183.52,183.42,2.83]
[1755789531645,7.95187206,183.55,183.45,5.4515]
[1755789532235,7.95187206,183.55,183.42,2.83]
[1755789532747,3.07,183.55,183.48,5.4507]
[1755789532942,3.07,183.55,183.45,3.03]
[1755789533143,3.07,183.55,183.46,5.4514]
[1755789533344,7.95187206,183.55,183.45,3.03]
[1755789533544,3.07,183.55,183.45,3.03]
[1755789534448,3.07,183.55,183.47,5.451]
[1755789534644,7.95187206,183.55,183.45,3.03]
[1755789535141,7.95187206,183.55,183.47,5.451]
[1755789535543,7.95187206,183.55,183.46,5.4512]
[1755789535749,7.95187206,183.55,183.45,3.03]
[1755789536846,2.98,183.51,183.4,3.03]
[1755789537048,4.88187206,183.49,183.4,8.4831]
[1755789537244,2.98,183.48,183.4,3.03]
[1755789538148,2.98,183.48,183.36,3.03]
[1755789539045,4.88187206,183.46,183.36,3.03]
[1755789539247,4.88187206,183.46,183.39,5.4535]
[1755789539551,4.88187206,183.46,183.36,3.03]
[1755789540351,2.98,183.48,183.36,3.03]
[1755789540745,7.86187206,183.52,183.44,5.4518]
[1755789540941,7.86187206,183.52,183.38,3.03]
[1755789541141,4.88187206,183.49,183.38,3.03]
[1755789541548,2.98,183.54,183.41,3.03]
[1755789541846,4.88187206,183.53,183.41,3.03]
[1755789542653,2.98,183.52,183.41,3.03]
[1755789543051,2.98,183.49,183.41,3.03]
[1755789543244,2.98,183.49,183.37,3.03]
[1755789543750,2.98,183.46,183.31,3.03]
[1755789543946,4.88187206,183.44,183.31,3.03]
[1755789544454,4.88187206,183.44,183.35,5.4547]
[1755789544954,4.88187206,183.44,183.31,3.03]
[1755789545356,4.88187206,183.44,183.34,5.455]
[1755789545555,4.88187206,183.44,183.31,3.03]
[1755789545855,4.88187206,183.44,183.34,5.4548]
[1755789546051,4.88187206,183.44,183.31,3.03]
[1755789546457,2.98,183.46,183.38,5.4538]
[1755789546751,2.98,183.46,183.35,3.03]
[1755789546953,2.98,183.46,183.38,5.4536]
[1755789547153,2.98,183.46,183.35,3.03]
[1755789547452,2.98,183.46,183.38,5.4537]
[1755789547658,2.98,183.46,183.35,3.03]
[1755789548056,2.98,183.5,183.37,3.03]
[1755789548254,2.98,183.5,183.39,4.88187206]
[1755789548453,2.98,183.5,183.4,3.03]
[1755789548648,2.98,183.5,183.41,5.4529]
[1755789549161,2.98,183.5,183.4,8.483]
[1755789549957,2.98,183.5,183.4,3.03]
[1755789550155,7.86187206,183.5,183.4,3.03]
[1755789550958,7.86187206,183.5,183.41,5.4529]
[1755789551153,2.98,183.5,183.41,5.4529]
[1755789551857,2.98,183.5,183.4,3.03]
[1755789552059,2.98,183.5,183.4,8.4832]
[1755789552355,2.98,183.5,183.4,3.03]
[1755789552561,2.98,183.5,183.41,5.4527]
[1755789552758,2.98,183.5,183.4,3.03]
[1755789552954,4.88187206,183.49,183.4,8.4832]
[1755789553156,2.98,183.48,183.4,5.4532]
[1755789553560,2.98,183.48,183.41,5.4529]
[1755789554251,2.98,183.48,183.37,3.03]
[1755789554863,4.88187206,183.54,183.39,4.88187206]
[1755789555162,4.88187206,183.54,183.4,3.03]
[1755789555458,2.98,183.53,183.4,3.03]
[1755789555664,2.98,183.5,183.4,3.03]
[1755789555852,4.88187206,183.48,183.4,3.03]
[1755789556957,4.88187206,183.48,183.41,5.4527]
[1755789557153,510.74,183.57,183.41,3.03]
[1755789557154,4.88187206,183.53,183.41,3.03]
[1755789557556,2.98,183.52,183.43,5.4523]
[1755789557761,2.98,183.52,183.41,3.03]
[1755789557960,2.98,183.61,183.43,4.88187206]
[1755789558162,2.98,183.57,183.44,3.03]
[1755789559370,2.98,183.57,183.43,4.88187206]
[1755789559567,4.88187206,183.6,183.47,3.03]
[1755789560063,2.98,183.61,183.5,3.03]
[1755789560459,4.88187206,183.6,183.5,3.03]
[1755789560765,2.98,183.59,183.5,3.03]
[1755789561562,2.98,183.59,183.52,5.4496]
[1755789561758,2.98,183.59,183.5,3.03]
[1755789563277,4.88187206,183.63,183.5,3.03]
[1755789563569,2.85,183.64,183.5,3.03]
[1755789563764,2.85,183.64,183.53,3.03]
[1755789565167,2.85,183.61,183.53,3.03]
[1755789565369,2.85,183.61,183.53,8.4791]
[1755789565567,2.85,183.61,183.53,3.03]
[1755789565974,2.85,183.61,183.54,5.4488]
[1755789566968,2.85,183.61,183.53,8.4792]
[1755789567376,2.85,183.61,183.53,3.03]
[1755789567571,2.85,183.61,183.54,5.4489]
[1755789567770,2.85,183.61,183.49,3.03]
[1755789568275,2.85,183.61,183.52,5.4494]
[1755789568481,4.88187206,183.59,183.52,5.4494]
[1755789569077,4.88187206,183.59,183.49,3.03]
[1755789569583,2.85,183.61,183.55,5.4485]
[1755789569778,2.85,183.61,183.49,3.03]
[1755789570683,4.88187206,183.59,183.52,5.4495]
[1755789570982,7.73187206,183.59,183.52,5.4495]
[1755789571181,7.73187206,183.59,183.52,5.4497]
[1755789571383,7.73187206,183.59,183.49,3.03]
[1755789572381,2.85,183.55,183.45,3.03]
[1755789572882,2.85,183.55,183.49,5.4505]
[1755789573585,2.85,183.54,183.5,5.4503]
[1755789573984,2.85,183.54,183.45,3.03]
[1755789574180,4.88187206,183.56,183.45,3.03]
[1755789574385,7.73187206,183.59,183.46,3.03]
[1755789574583,7.73187206,183.59,183.54,5.4489]
[1755789574884,2.85,183.59,183.54,5.4489]
[1755789575481,7.73187206,183.64,183.5,3.03]
[1755789575986,7.73187206,183.64,183.56,5.4483]
[1755789576187,2.85,183.63,183.5,3.03]
[1755789577284,2.85,183.6,183.5,3.03]
[1755789578787,2.85,183.6,183.46,3.03]
[1755789579286,2.85,183.57,183.51,5.4498]
[1755789579485,2.85,183.57,183.46,3.03]
[1755789580884,7.73187206,183.61,183.46,3.03]
[1755789581086,7.73187206,183.61,183.54,5.449]
[1755789581284,7.73187206,183.61,183.51,3.03]
[1755789581890,2.85,183.6,183.46,3.03]
[1755789582090,2.85,183.6,183.52,5.4495]
[1755789582283,2.85,183.6,183.46,3.03]
[1755789582882,4.88187206,183.58,183.46,3.03]
[1755789583178,2.85,183.57,183.5,5.4502]
[1755789583377,4.88187206,183.55,183.46,3.03]
[1755789583779,2.85,183.54,183.47,5.451]
[1755789583986,2.85,183.54,183.46,3.03]
[1755789584688,2.85,183.54,183.42,369.35]
[1755789585083,2.85,183.54,183.43,3.03]
[1755789585283,4.88187206,183.58,183.43,3.03]
[1755789586085,4.88187206,183.58,183.46,3.03]
[1755789587588,4.88187206,183.58,183.5,5.4501]
[1755789588285,2.85,183.57,183.46,3.03]
[1755789588790,2.85,183.57,183.5,5.4502]
[1755789589191,2.85,183.57,183.46,3.03]
[1755789590787,4.88187206,183.61,183.48,4.88187206]
[1755789591094,4.88187206,183.61,183.49,3.03]
[1755789591489,4.88187206,183.61,183.54,5.4489]
[1755789591690,4.88187206,183.61,183.49,3.03]
[1755789591890,2.85,183.6,183.49,3.03]
[1755789592493,2.85,183.6,183.53,5.4493]
[1755789592695,2.85,183.6,183.49,3.03]
[1755789592894,369.19,183.65,183.49,3.03]
[1755789593093,369.19,183.65,183.52,2.91]
[1755789594085,3.03,183.65,183.52,2.91]
[1755789594591,3.03,183.65,183.57,2.91]
[1755789595201,3.03,183.65,183.6,5.4471]
[1755789595998,3.03,183.71,183.58,2.91]
[1755789596895,3.03,183.71,183.6,5.447]
[1755789597095,3.03,183.68,183.58,2.91]
[1755789600700,3.03,183.73,183.61,2.91]
[1755789600896,3.03,183.73,183.64,2.91]
[1755789602698,7.91187206,183.78,183.64,7.79187206]
[1755789603097,7.91187206,183.78,183.64,4.88187206]
[1755789603299,7.91187206,183.78,183.67,2.91]
[1755789603700,7.91187206,183.78,183.68,2.91]
[1755789603701,3.03,183.78,183.68,2.91]
[1755789603905,4.88187206,183.84,183.71,2.91]
[1755789604106,3.03,183.82,183.71,2.91]
[1755789604304,4.88187206,183.81,183.71,2.91]
[1755789604501,3.03,183.8,183.67,4.88187206]
[1755789604700,3.03,183.77,183.66,2.91]
[1755789605799,3.03,183.77,183.7,5.4443]
[1755789606103,3.03,183.76,183.66,2.91]
[1755789607304,3.03,183.76,183.7,5.4441]
[1755789607501,3.03,183.76,183.66,2.91]
[1755789607698,7.91187206,183.8,183.66,2.91]
[1755789607898,7.91187206,183.8,183.67,2.91]
[1755789608098,0.94726097,183.86,183.7,2.91]
[1755789608300,3.03,183.83,183.7,7.79187206]
[1755789608500,3.03,183.81,183.7,2.91]
[1755789609409,3.03,183.81,183.7,7.79187206]
[1755789609610,3.03,183.81,183.71,2.91]
[1755789610007,3.03,183.81,183.74,5.4432]
[1755789610309,3.03,183.81,183.71,2.91]
[1755789611207,3.03,183.8,183.66,2.91]
[1755789611604,3.03,183.8,183.7,2.91]
[1755789612712,3.03,183.8,183.68,4.88187206]
[1755789612713,3.03,183.79,183.65,7.79187206]
[1755789612904,4.88187206,183.77,183.65,2.91]
[1755789613109,4.88187206,183.77,183.68,5.4447]
[1755789613311,3.03,183.76,183.65,2.91]
[1755789613809,4.88187206,183.74,183.65,2.91]
[1755789614111,3.03,183.73,183.65,2.91]
[1755789614313,3.03,183.72,183.68,5.4449]
[1755789614611,3.03,183.71,183.68,5.4449]
[1755789614811,4.88187206,183.74,183.65,2.91]
[1755789615010,7.91187206,183.76,183.65,2.91]
[1755789615412,7.91187206,183.76,183.71,5.444]
[1755789615710,3.03,183.75,183.68,2.91]
[1755789615914,4.88187206,183.79,183.7,5.4441]
[1755789616216,3.03,183.74,183.65,2.91]
[1755789617114,3.03,183.74,183.67,5.445]
[1755789617315,3.03,183.74,183.65,2.91]
[1755789617609,3.03,183.74,183.68,5.4449]
[1755789617813,4.88187206,183.73,183.65,2.91]
[1755789618615,4.88187206,183.73,183.66,5.4455]
[1755789618822,4.88187206,183.73,183.61,2.91]
[1755789619018,4.88187206,183.73,183.64,5.446]
[1755789619214,3.03,183.69,183.61,2.91]
[1755789619716,3.03,183.69,183.61,5.447]
[1755789619915,4.88187206,183.67,183.57,2.91]
[1755789620622,3.03,183.66,183.57,2.91]
[1755789620815,3.03,183.66,183.55,366.04]
[1755789620816,4.88187206,183.64,183.55,366.04]
[1755789621015,4.88187206,183.64,183.53,2.91]
[1755789621217,3.03,183.63,183.53,2.91]
[1755789621612,4.88187206,183.61,183.53,2.91]
[1755789621814,4.88187206,183.58,183.48,2.91]
[1755789622208,4.88187206,183.58,183.52,5.4494]
[1755789622413,4.88187206,183.58,183.48,2.91]
[1755789622610,3.03,183.6,183.48,2.91]
[1755789622821,3.03,183.6,183.52,2.77]
[1755789623020,7.66187206,183.64,183.52,2.77]
[1755789623920,7.66187206,183.64,183.57,5.4479]
[1755789624117,7.66187206,183.64,183.52,2.77]
[1755789624421,7.66187206,183.64,183.56,5.4485]
[1755789624615,2.78,183.64,183.52,2.77]
[1755789624812,2.78,183.68,183.55,2.77]
[1755789625314,2.78,183.66,183.55,2.77]
[1755789625711,4.88187206,183.64,183.55,2.77]
[1755789625913,2.78,183.63,183.51,2.77]
[1755789626512,2.78,183.6,183.47,2.77]
[1755789626711,4.88187206,183.58,183.47,2.77]
[1755789627824,2.78,183.6,183.48,2.77]
[1755789628013,4.88187206,183.64,183.56,5.4484]
[1755789628219,4.88187206,183.64,183.51,2.77]
[1755789628624,515.48823412,183.76,183.51,2.77]
[1755789628625,2.78,183.63,183.51,2.77]
[1755789629514,2.78,183.67,183.54,2.77]
[1755789629925,4.88187206,183.63,183.44,10.904]
[1755789630120,2.78,183.62,183.49,2.77]
[1755789630324,2.78,183.62,183.53,5.4494]
[1755789630827,4.88187206,183.6,183.49,2.77]
[1755789631126,2.78,183.59,183.49,2.77]
[1755789632325,2.78,183.59,183.51,5.4497]
[1755789632520,2.78,183.59,183.49,2.77]
[1755789634222,4.88187206,183.63,183.49,2.77]
[1755789634428,4.88187206,183.63,183.54,5.4489]
[1755789634626,2.78,183.62,183.49,2.77]
[1755789636127,2.78,183.62,183.5,2.77]
[1755789636724,4.88187206,183.63,183.43,149.61934469]
[1755789636725,2.78,183.67,183.53,2.77]
[1755789637023,2.78,183.67,183.55,4.88187206]
[1755789637222,2.78,183.67,183.56,2.77]
[1755789638831,2.78,183.67,183.6,5.4472]
[1755789639534,2.78,183.67,183.56,2.77]
[1755789640929,2.78,183.67,183.56,7.65187206]
[1755789641330,2.78,183.67,183.6,5.4471]
[1755789641531,2.78,183.67,183.56,7.65187206]
[1755789642234,2.78,183.67,183.6,5.4471]
[1755789642533,2.78,183.67,183.57,4.88187206]
[1755789642833,2.78,183.67,183.56,2.77]
[1755789643529,4.88187206,183.65,183.56,2.77]
[1755789643834,2.78,183.64,183.52,2.77]
[1755789644337,2.78,183.64,183.53,5.4492]
[1755789644629,2.78,183.61,183.5,366.02]
[1755789645128,2.78,183.61,183.51,2.77]
[1755789645932,2.78,183.61,183.51,8.2199]
[1755789646436,2.78,183.58,183.47,2.77]
[1755789646733,2.78,183.58,183.41,5.93934469]
[1755789646734,4.88187206,183.56,183.41,2.77]
[1755789647037,4.88187206,183.54,183.41,2.77]
[1755789647234,2.78,183.53,183.41,2.77]
[1755789648735,4.88187206,183.55,183.41,2.77]
[1755789648736,4.88187206,183.55,183.47,5.4509]
[1755789648931,4.88187206,183.55,183.45,2.77]
[1755789649233,2.78,183.57,183.52,5.4494]
[1755789649436,2.78,183.61,183.52,2.77]
[1755789649731,2.78,183.61,183.53,5.4493]
[1755789649933,2.78,183.61,183.52,2.77]
[1755789650530,2.78,183.61,183.52,8.2195]
[1755789651134,2.78,183.61,183.51,5.4499]
[1755789651330,4.88187206,183.6,183.48,2.77]
[1755789652529,4.88187206,183.6,183.53,5.4492]
[1755789652734,2.78,183.61,183.51,2.93]
[1755789652929,2.78,183.61,183.54,5.4489]
[1755789653134,2.78,183.61,183.51,2.93]
[1755789653534,2.78,183.61,183.53,5.4492]
[1755789653929,2.78,183.61,183.51,2.93]
[1755789654139,2.78,183.61,183.53,5.4492]
[1755789654329,2.78,183.61,183.51,2.93]
[1755789655438,2.78,183.61,183.52,5.4494]
[1755789655638,2.78,183.61,183.51,2.93]
[1755789656039,2.78,183.61,183.54,5.449]
[1755789656341,2.78,183.61,183.51,2.93]
[1755789657247,2.78,183.61,183.57,5.4482]
[1755789657534,2.78,183.61,183.51,7.81187206]
[1755789657946,2.78,183.61,183.51,2.93]
[1755789658334,2.78,183.61,183.52,5.4495]
[1755789658840,3.07,183.59,183.47,2.93]
[1755789659844,3.07,183.56,183.47,2.93]
[1755789660439,4.88187206,183.59,183.52,5.4495]
[1755789660845,3.07,183.6,183.49,2.93]
[1755789661743,3.07,183.6,183.52,5.4496]
[1755789661942,4.88187206,183.59,183.49,2.93]
[1755789662242,4.88187206,183.59,183.52,5.4496]
[1755789662443,4.88187206,183.59,183.49,2.93]
[1755789662751,3.07,183.55,183.43,2.93]
[1755789663045,3.07,183.55,183.47,5.451]
[1755789663245,4.88187206,183.56,183.43,2.93]
[1755789663246,4.88187206,183.6,183.45,2.93]
[1755789663437,3.07,183.59,183.47,4.88187206]
[1755789663638,3.07,183.59,183.52,5.4494]
[1755789663944,3.07,183.59,183.48,2.93]
[1755789666234,3.07,183.59,183.49,5.4505]
[1755789666435,3.07,183.59,183.48,7.81187206]
[1755789666846,7.95187206,183.59,183.48,2.93]
[1755789667841,7.95187206,183.59,183.49,5.4503]
[1755789668042,3.07,183.59,183.5,2.93]
[1755789668642,3.07,183.59,183.51,5.4497]
[1755789668837,3.07,183.59,183.5,2.93]
[1755789669847,3.07,183.59,183.52,5.4494]
[1755789670044,3.07,183.63,183.51,4.88187206]
[1755789670247,3.07,183.63,183.52,2.93]
[1755789670947,3.07,183.67,183.58,5.4476]
[1755789671543,3.07,183.67,183.55,2.93]
[1755789671943,3.07,183.64,183.55,2.93]
[1755789672544,3.07,183.64,183.55,8.3786]
[1755789672743,3.07,183.64,183.55,2.93]
[1755789673149,3.07,183.64,183.55,8.3786]
[1755789673448,3.07,183.64,183.5,2.93]
[1755789673650,3.07,183.64,183.54,5.4489]
[1755789673846,3.07,183.64,183.5,2.93]
[1755789674047,3.07,183.64,183.55,5.4485]
[1755789674249,3.07,183.64,183.53,2.93]
[1755789674746,3.07,183.64,183.56,5.4483]
[1755789675051,3.07,183.64,183.53,2.93]
[1755789675651,3.07,183.64,183.56,5.4483]
[1755789676350,3.07,183.64,183.55,5.4487]
[1755789676645,3.07,183.58,183.48,2.93]
[1755789676847,3.07,183.58,183.53,5.4491]
[1755789677150,3.07,183.58,183.48,8.86934469]
[1755789677348,3.07,183.58,183.48,2.93]
[1755789677956,4.88187206,183.7,183.48,2.93]
[1755789677957,3.07,183.61,183.49,5.93934469]
[1755789678249,3.07,183.61,183.48,4.88187206]
[1755789678250,3.07,183.61,183.51,2.93]
[1755789678751,3.07,183.61,183.54,5.4491]
[1755789679446,3.07,183.61,183.53,5.4492]
[1755789679649,3.07,183.61,183.51,2.93]
[1755789680850,3.07,183.58,183.51,2.93]
[1755789681047,3.07,183.58,183.47,2.93]
[1755789681644,3.07,183.58,183.52,5.4494]
[1755789681850,3.07,183.58,183.48,2.93]
[1755789683152,2.99,183.57,183.48,2.93]
[1755789683658,4.88187206,183.55,183.48,2.93]
[1755789683857,4.88187206,183.55,183.44,5.93934469]
[1755789684058,2.99,183.54,183.44,2.8]
[1755789684562,2.99,183.51,183.4,2.8]
[1755789684756,4.88187206,183.49,183.4,2.8]
[1755789685056,2.99,183.48,183.4,2.8]
[1755789685253,2.99,183.48,183.38,143.2]
[1755789685458,4.88187206,183.47,183.37,84.235951]
[1755789685655,2.99,183.46,183.37,2.8]
[1755789686253,4.88187206,183.44,183.33,2.8]
[1755789686458,4.88187206,183.45,183.33,2.8]
[1755789686655,4.88187206,183.45,183.39,5.4533]
[1755789686856,4.88187206,183.45,183.37,2.8]
[1755789687160,2.99,183.46,183.42,5.4526]
[1755789687560,4.88187206,183.48,183.37,2.8]
[1755789687763,2.99,183.46,183.37,2.8]
[1755789688358,4.88187206,183.48,183.37,2.8]
[1755789688963,2.99,183.5,183.44,5.4518]
[1755789689168,2.99,183.5,183.37,2.8]
[1755789689853,2.99,183.5,183.42,5.4524]
[1755789690053,2.99,183.5,183.37,2.8]
[1755789690261,2.99,183.47,183.37,2.8]
[1755789690861,7.87187206,183.51,183.37,2.8]
[1755789691059,2.99,183.51,183.37,2.8]
[1755789691260,2.99,183.51,183.39,4.88187206]
[1755789691459,2.99,183.51,183.39,2.8]
[1755789691764,2.99,183.48,183.39,2.8]
[1755789692366,4.88187206,183.46,183.39,2.8]
[1755789692563,2.99,183.48,183.39,2.8]
[1755789693154,4.88187206,183.46,183.39,5.4535]
[1755789693561,4.88187206,183.46,183.38,5.4538]
[1755789693868,2.99,183.45,183.35,2.8]
[1755789694162,2.99,183.45,183.36,5.4542]
[1755789694663,2.99,183.45,183.35,2.8]
[1755789695367,2.99,183.45,183.37,5.454]
[1755789695667,2.99,183.45,183.35,2.8]
[1755789696554,2.99,183.45,183.38,5.4538]
[1755789697054,2.99,183.45,183.35,2.8]
[1755789697656,4.88187206,183.49,183.36,2.8]
[1755789698258,2.99,183.5,183.4,2.8]
[1755789698455,2.99,183.55,183.41,4.88187206]
[1755789698760,2.99,183.55,183.45,2.8]
[1755789699265,2.99,183.55,183.4,143.12]
[1755789699266,2.99,183.6,183.49,2.8]
[1755789699465,2.99,183.6,183.4,515.35934469]
[1755789699466,2.99,183.58,183.45,2.8]
[1755789699770,2.99,183.58,183.49,5.4503]
[1755789699965,2.99,183.58,183.45,2.8]
[1755789700463,2.99,183.58,183.49,5.4504]
[1755789700960,2.99,183.58,183.45,2.8]
[1755789701260,7.87187206,183.62,183.48,2.8]
[1755789701664,2.99,183.62,183.51,2.8]
[1755789702063,371.18187206,183.64,183.51,2.8]
[1755789702258,4.88187206,183.64,183.51,2.8]
[1755789702458,2.99,183.63,183.51,2.8]
[1755789702767,2.99,183.63,183.54,5.4491]
[1755789702967,2.99,183.63,183.51,2.8]
[1755789703164,2.99,183.63,183.54,5.4491]
[1755789703570,2.99,183.63,183.51,2.8]
[1755789704460,4.88187206,183.61,183.51,2.8]
[1755789705261,2.99,183.6,183.51,2.8]
[1755789705664,4.88187206,183.61,183.51,2.8]
[1755789705864,7.87187206,183.64,183.51,2.8]
[1755789706967,2.99,183.64,183.51,2.8]
[1755789707362,367.2678673,183.74,183.53,4.88187206]
[1755789707363,2.99,183.73,183.53,4.88187206]
[1755789707566,4.88187206,183.7,183.54,2.8]
[1755789707764,2.99,183.69,183.57,2.8]
[1755789708173,2.99,183.69,183.62,5.4465]
[1755789708469,2.99,183.69,183.57,2.8]
[1755789708873,2.99,183.69,183.61,5.4468]
[1755789709862,2.99,183.69,183.6,5.4472]
[1755789710774,2.99,183.69,183.6,2.8]
[1755789711464,7.87187206,183.73,183.6,2.8]
[1755789711771,2.99,183.73,183.6,2.8]
[1755789712475,4.88187206,183.72,183.6,2.8]
[1755789712675,2.96,183.71,183.6,2.8]
[1755789713368,2.96,183.71,183.6,8.2473]
[1755789713572,2.96,183.71,183.6,2.8]
[1755789716478,2.96,183.71,183.61,2.97]
[1755789716777,2.96,183.71,183.64,5.4461]
[1755789716973,2.96,183.71,183.61,2.97]
[1755789717875,7.84187206,183.71,183.61,2.97]
[1755789718075,2.96,183.7,183.61,2.97]
[1755789718675,2.96,183.7,183.61,8.417]
[1755789719088,2.96,183.7,183.61,2.97]
[1755789719782,2.96,183.7,183.65,5.4457]
[1755789720075,2.96,183.7,183.65,2.97]
[1755789720270,371.20187206,183.74,183.64,5.446]
[1755789720478,2.96,183.69,183.61,2.97]
[1755789720670,2.96,183.73,183.61,2.97]
[1755789720974,2.96,183.73,183.65,5.4456]
[1755789721179,2.96,183.73,183.61,2.97]
[1755789722482,2.96,183.73,183.65,5.4456]
[1755789722778,2.96,183.73,183.61,2.97]
[1755789723478,2.96,183.73,183.64,5.446]
[1755789723682,2.96,183.73,183.61,2.97]
[1755789724278,2.96,183.73,183.64,5.4459]
[1755789724476,2.96,183.73,183.61,2.97]
[1755789725182,2.96,183.73,183.66,5.4454]
[1755789725385,2.96,183.73,183.61,2.97]
[1755789725782,2.96,183.73,183.66,5.4453]
[1755789725978,2.96,183.73,183.61,2.97]
[1755789726186,2.96,183.73,183.62,2.97]
[1755789726686,2.96,183.72,183.68,5.4447]
[1755789727275,2.96,183.77,183.69,5.4446]
[1755789727476,2.96,183.77,183.65,2.97]
[1755789727679,2.96,183.77,183.7,5.4441]
[1755789728387,2.96,183.77,183.68,2.97]
[1755789728782,2.96,183.77,183.71,5.444]
[1755789729182,2.96,183.77,183.68,2.97]
[1755789729183,2.96,183.77,183.63,4.88187206]
[1755789729481,2.96,183.77,183.68,5.4447]
[1755789729686,2.96,183.77,183.64,2.97]
[1755789730085,2.96,183.77,183.69,5.4446]
[1755789730282,7.84187206,183.77,183.64,2.97]
[1755789731085,7.84187206,183.77,183.68,5.4448]
[1755789731485,7.84187206,183.77,183.64,2.97]
[1755789731683,2.96,183.77,183.66,4.88187206]
[1755789731884,2.96,183.77,183.67,2.97]
[1755789732286,2.96,183.77,183.69,5.4446]
[1755789732483,2.96,183.77,183.67,2.97]
[1755789733080,7.84187206,183.77,183.67,2.97]
[1755789733385,2.96,183.76,183.63,7.85187206]
[1755789733778,2.96,183.76,183.64,2.97]
[1755789734390,2.98843155,183.7,183.59,2.97]
[1755789734591,2.98843155,183.68,183.59,2.97]
[1755789734787,2.98843155,183.66,183.61,5.4468]